bitfinex/quotes_BTCUSD_20250408
["timestamp","ask_amount","ask_price","bid_price","bid_amount"]
[1744154275573,0.34,76412.0,76406.0,0.013087]
[1744154275773,0.013087,76409.0,76405.0,0.00304271]
[1744154276002,0.209404,76407.0,76405.0,0.00304271]
[1744154276265,0.013087,76406.0,76405.0,0.00304271]
[1744154276459,0.59908007,76406.0,76405.0,0.00304271]
[1744154276750,0.562513,76400.0,76399.0,0.11697391]
[1744154277067,0.46625864,76400.0,76399.0,0.11739217]
[1744154277265,0.46625864,76400.0,76399.0,0.13048117]
[1744154277388,0.34,76400.0,76399.0,0.13048117]
[1744154277589,0.02433443,76400.0,76399.0,0.16709039]
[1744154277905,0.003,76400.0,76399.0,0.29596688]
[1744154278124,0.34,76423.0,76411.0,0.013087]
[1744154278323,0.353085,76423.0,76417.0,0.013086]
[1744154278706,0.209366,76421.0,76408.0,0.013087]
[1744154278913,0.34,76412.0,76407.0,0.209404]
[1744154279113,0.34,76412.0,76409.0,0.209399]
[1744154279348,0.34,76412.0,76408.0,0.013087]
[1744154279580,0.34,76412.0,76407.0,0.222491]
[1744154279709,0.34,76412.0,76409.0,0.222485]
[1744154279918,0.353086,76415.0,76409.0,0.222485]
[1744154280342,0.34,76415.0,76411.0,0.209392]
[1744154280542,0.34,76415.0,76410.0,0.013087]
[1744154280742,0.34,76413.0,76408.0,0.002]
[1744154280944,0.013087,76411.0,76402.0,0.222503]
[1744154281142,0.013087,76406.0,76400.0,0.222513]
[1744154281308,0.02428767,76405.0,76399.0,0.00041826]
[1744154281516,0.013088,76404.0,76399.0,0.00041826]
[1744154281747,0.36428767,76405.0,76402.0,0.013088]
[1744154281952,0.02428767,76404.0,76402.0,0.013088]
[1744154282353,0.34,76405.0,76404.0,0.209413]
[1744154282519,0.34,76417.0,76411.0,0.22248]
[1744154282769,0.02528455,76412.0,76411.0,0.22248]
[1744154282967,0.013087,76410.0,76401.0,0.013088]
[1744154283200,0.34,76411.0,76410.0,0.013087]
[1744154283559,0.36428455,76411.0,76410.0,0.013087]
[1744154283882,0.222442,76424.0,76410.0,0.013087]
[1744154283883,0.222431,76428.0,76420.0,0.209367]
[1744154284176,0.013085,76420.0,76413.0,0.013086]
[1744154284377,0.34,76418.0,76407.0,0.222491]
[1744154284579,0.001,76411.0,76410.0,0.013087]
[1744154284780,0.68973864,76411.0,76410.0,0.002]
[1744154284990,0.34,76410.0,76406.0,0.013087]
[1744154285145,0.34,76410.0,76401.0,0.209421]
[1744154285146,0.013087,76408.0,76401.0,0.209421]
[1744154285510,0.02430372,76407.0,76404.0,0.013088]
[1744154285784,0.02430372,76407.0,76406.0,0.013087]
[1744154286190,0.013085,76418.0,76407.0,0.013087]
[1744154286338,0.13934364,76418.0,76408.0,0.013087]
[1744154286759,0.23039199,76418.0,76408.0,0.013087]
[1744154286960,0.34,76412.0,76408.0,0.222486]
[1744154287198,0.024292,76411.0,76409.0,0.013087]
[1744154287509,0.024292,76411.0,76409.0,0.222485]
[1744154287711,0.024292,76411.0,76408.0,0.013087]
[1744154287870,0.222488,76409.0,76408.0,0.003]
[1744154288070,0.024292,76409.0,76405.0,0.013088]
[1744154288298,0.037379,76409.0,76404.0,0.222499]
[1744154288703,0.013087,76408.0,76402.0,0.222505]
[1744154289056,0.024292,76408.0,76404.0,0.2225]
[1744154289297,0.024292,76408.0,76407.0,0.013087]
[1744154289649,0.024292,76409.0,76408.0,0.222489]
[1744154290030,0.024292,76409.0,76408.0,0.224489]
[1744154290241,0.34,76416.0,76411.0,0.209393]
[1744154290570,0.34,76416.0,76415.0,0.013086]
[1744154290972,0.02837868,76423.0,76417.0,0.013086]
[1744154291175,0.013085,76422.0,76417.0,0.013086]
[1744154291533,0.222454,76421.0,76415.0,0.013086]
[1744154291731,0.562453,76421.0,76416.0,0.20938]
[1744154291954,0.562453,76421.0,76415.0,0.222466]
[1744154292701,0.004,76416.0,76409.0,0.209397]
[1744154292831,0.34,76414.0,76408.0,0.211401]
[1744154293050,0.013086,76412.0,76408.0,0.002]
[1744154293475,0.013087,76411.0,76405.0,0.013088]
[1744154293693,0.013086,76412.0,76407.0,0.209404]
[1744154293887,0.222479,76412.0,76406.0,0.013087]
[1744154294091,0.211382,76416.0,76406.0,0.013087]
[1744154294092,0.013085,76420.0,76409.0,0.013087]
[1744154294289,0.014086,76412.0,76407.0,0.222491]
[1744154294493,0.001,76412.0,76409.0,0.209399]
[1744154294694,0.001,76412.0,76410.0,0.013087]
[1744154294859,0.001,76412.0,76411.0,0.209393]
[1744154295058,0.013086,76417.0,76410.0,0.222481]
[1744154295366,0.222466,76416.0,76410.0,0.222481]
[1744154295569,0.209377,76418.0,76412.0,0.013086]
[1744154295805,0.01529368,76423.0,76420.0,0.222453]
[1744154295972,0.01529368,76423.0,76422.0,0.222448]
[1744154296173,0.013083,76431.0,76423.0,0.013085]
[1744154296377,0.222404,76438.0,76433.0,0.222414]
[1744154296811,0.222406,76437.0,76432.0,0.013083]
[1744154296997,0.40076119,76460.0,76446.0,0.013081]
[1744154297202,0.40076119,76460.0,76441.0,0.22239]
[1744154297203,0.01308,76447.0,76441.0,0.22239]
[1744154297539,0.01308,76447.0,76439.0,0.013082]
[1744154297749,0.209303,76445.0,76439.0,0.013082]
[1744154298395,0.01308,76448.0,76443.0,0.013081]
[1744154298508,0.01308,76448.0,76440.0,0.013082]
[1744154298714,0.013081,76441.0,76433.0,0.013083]
[1744154299017,0.013081,76441.0,76434.0,0.0255796]
[1744154299251,0.222392,76442.0,76435.0,0.209328]
[1744154299430,0.013081,76441.0,76436.0,0.222405]
[1744154299626,0.013081,76442.0,76441.0,0.001]
[1744154299973,0.013081,76442.0,76440.0,0.001]
[1744154300166,0.013081,76442.0,76437.0,0.222402]
[1744154300328,0.001,76441.0,76437.0,0.222402]
[1744154300527,0.003,76442.0,76441.0,0.222392]
[1744154300915,0.008,76442.0,76441.0,0.27420819]
[1744154301115,0.008,76442.0,76441.0,0.271592]
[1744154301313,0.003,76442.0,76441.0,0.44745064]
[1744154301728,0.01495267,76459.0,76457.0,0.222344]
[1744154301982,0.34,76463.0,76459.0,0.013078]
[1744154302162,0.34,76463.0,76459.0,0.222338]
[1744154302684,0.56233,76463.0,76458.0,0.013079]
[1744154302884,0.005,76459.0,76451.0,0.222364]
[1744154303043,0.353079,76454.0,76451.0,0.00012601]
[1744154303425,0.209278,76453.0,76451.0,0.00012601]
[1744154303585,0.34,76454.0,76451.0,0.00012601]
[1744154303789,0.222357,76453.0,76451.0,0.00012601]
[1744154304384,0.549278,76454.0,76451.0,0.00012601]
[1744154304589,0.209278,76453.0,76451.0,0.00012601]
[1744154304775,0.222357,76453.0,76451.0,0.00012601]
[1744154304972,0.01308,76452.0,76451.0,0.00012601]
[1744154306330,0.47933864,76452.0,76451.0,0.00012601]
[1744154306505,0.48133864,76452.0,76451.0,0.00012601]
[1744154306891,0.53313864,76452.0,76451.0,0.00012601]
[1744154307099,0.71425864,76452.0,76451.0,0.00012601]
[1744154307309,0.71225864,76452.0,76451.0,0.00012601]
[1744154307800,0.71525864,76452.0,76451.0,0.00012601]
[1744154308014,0.71125864,76452.0,76451.0,0.00012601]
[1744154308537,0.66945864,76452.0,76451.0,0.00012601]
[1744154308702,0.53012,76452.0,76451.0,0.00012601]
[1744154308906,0.53012,76452.0,76451.0,0.22249001]
[1744154309157,0.009,76452.0,76451.0,0.22249001]
[1744154309931,0.009,76452.0,76451.0,0.00012601]
[1744154310269,0.009,76452.0,76451.0,0.22249001]
[1744154310618,0.02208,76452.0,76451.0,0.00012601]
[1744154310886,0.48833864,76452.0,76451.0,0.00012601]
[1744154316879,0.76422618,76452.0,76451.0,0.00012601]
[1744154317079,0.76422618,76452.0,76428.0,0.22243]
[1744154317080,0.013083,76435.0,76428.0,0.22243]
[1744154317298,0.209336,76433.0,76428.0,0.013084]
[1744154317720,0.209338,76432.0,76426.0,0.222434]
[1744154318069,0.209338,76432.0,76421.0,0.209364]
[1744154318070,0.20935,76427.0,76421.0,0.209364]
[1744154318279,0.20935,76427.0,76419.0,0.00012608]
[1744154318280,0.013085,76422.0,76419.0,0.00012608]
[1744154318476,0.013083,76430.0,76424.0,0.209358]
[1744154318688,0.353084,76429.0,76424.0,0.209358]
[1744154318885,0.013084,76426.0,76419.0,0.00012608]
[1744154319089,0.209369,76420.0,76419.0,0.00012608]
[1744154319325,0.209363,76423.0,76419.0,0.00012608]
[1744154319523,0.01502924,76423.0,76421.0,0.001]
[1744154319725,0.013085,76422.0,76421.0,0.001]
[1744154320068,0.209363,76423.0,76421.0,0.001]
[1744154320871,0.20936,76424.0,76421.0,0.001]
[1744154321066,0.20936,76424.0,76419.0,0.00012608]
[1744154321268,0.222444,76424.0,76419.0,0.00012608]
[1744154322271,0.223444,76424.0,76419.0,0.00012608]
[1744154322567,0.223444,76424.0,76419.0,0.01321108]
[1744154322568,0.21036,76424.0,76419.0,0.01321108]
[1744154322868,0.209363,76423.0,76419.0,0.00012608]
[1744154323072,0.013085,76420.0,76419.0,0.00112608]
[1744154323309,0.47934364,76420.0,76419.0,0.00112608]
[1744154323519,0.66046364,76420.0,76419.0,0.00112608]
[1744154324310,0.209433,76397.0,76391.0,0.01309]
[1744154324558,0.209435,76396.0,76395.0,0.00041826]
[1744154324777,0.222524,76396.0,76395.0,0.00041826]
[1744154325124,0.34878264,76396.0,76395.0,0.00041826]
[1744154326413,0.34878264,76396.0,76395.0,0.00241826]
[1744154327079,0.68878264,76396.0,76395.0,0.00241826]
[1744154328205,0.68878264,76396.0,76395.0,0.00041826]
[1744154328590,0.69878264,76396.0,76395.0,0.00041826]
[1744154329256,0.45119927,76396.0,76395.0,0.00041826]
[1744154330394,0.66063427,76396.0,76395.0,0.00041826]
[1744154330591,0.67372327,76396.0,76395.0,0.00041826]
[1744154331388,0.35,76396.0,76395.0,0.01350726]
[1744154331589,0.35,76396.0,76395.0,0.05936499]
[1744154331793,0.01,76396.0,76395.0,0.05936499]
[1744154332358,0.004,76396.0,76395.0,0.05936499]
[1744154332760,0.003,76396.0,76395.0,0.05936499]
[1744154333220,0.004,76396.0,76395.0,0.05936499]
[1744154333719,0.004,76396.0,76395.0,0.06198288]
[1744154334020,0.001,76396.0,76395.0,0.06198288]
[1744154334316,0.004,76396.0,76395.0,0.06198288]
[1744154334959,0.003,76396.0,76395.0,0.06198288]
[1744154335114,0.34,76413.0,76407.0,0.013087]
[1744154335328,0.2094,76409.0,76404.0,0.013088]
[1744154335528,0.34,76411.0,76407.0,0.209403]
[1744154335715,0.34,76411.0,76410.0,0.013087]
[1744154335910,0.34,76411.0,76409.0,0.209398]
[1744154336551,0.562476,76413.0,76406.0,0.013087]
[1744154337329,0.342,76411.0,76406.0,0.222492]
[1744154338374,0.013086,76412.0,76407.0,0.222489]
[1744154339102,0.34,76414.0,76409.0,0.209399]
[1744154339306,0.34,76414.0,76410.0,0.013087]
[1744154339708,0.562471,76414.0,76409.0,0.013087]
[1744154340207,0.34,76411.0,76407.0,0.013087]
[1744154340494,0.342,76411.0,76406.0,0.222492]
[1744154340813,0.34,76411.0,76409.0,0.222484]
[1744154340958,0.34,76409.0,76403.0,0.222502]
[1744154341300,0.34,76405.0,76401.0,0.013088]
[1744154341528,0.34,76405.0,76400.0,0.013089]
[1744154341529,0.013089,76396.0,76395.0,0.00041826]
[1744154343035,0.212394,76411.0,76395.0,0.00041826]
[1744154343036,0.34,76403.0,76402.0,0.222505]
[1744154343204,0.34,76403.0,76402.0,0.013088]
[1744154343411,0.34,76403.0,76401.0,0.209419]
[1744154343616,0.34,76403.0,76402.0,0.013088]
[1744154344254,0.34,76408.0,76404.0,0.20941]
[1744154344609,0.34,76408.0,76404.0,0.222498]
[1744154344812,0.34,76408.0,76406.0,0.222494]
[1744154345035,0.34,76408.0,76407.0,0.013087]
[1744154345242,0.013085,76418.0,76413.0,0.209388]
[1744154345411,0.34,76419.0,76414.0,0.209383]
[1744154345641,0.34,76419.0,76391.0,0.1786]
[1744154345642,0.255325,76436.0,76422.0,0.013085]
[1744154345838,0.0485,76437.0,76422.0,0.013085]
[1744154345839,0.013083,76434.0,76427.0,0.222433]
[1744154346006,0.01444105,76434.0,76429.0,0.209343]
[1744154346203,0.222399,76439.0,76432.0,0.013083]
[1744154346427,0.013082,76438.0,76430.0,0.209341]
[1744154346630,0.013082,76436.0,76430.0,0.222424]
[1744154346832,0.222399,76439.0,76437.0,0.013082]
[1744154346833,0.00012555,76439.0,76437.0,0.013082]
[1744154347027,0.00012555,76439.0,76433.0,0.013083]
[1744154347246,0.00012555,76439.0,76433.0,0.222415]
[1744154347450,0.00512555,76439.0,76435.0,0.22241]
[1744154347607,0.01964158,76439.0,76437.0,0.013082]
[1744154347819,0.01964158,76439.0,76438.0,0.013082]
[1744154347820,0.01464158,76439.0,76438.0,0.013082]
[1744154348243,0.01964158,76439.0,76438.0,0.013082]
[1744154348682,0.02364158,76439.0,76438.0,0.013082]
[1744154349270,0.02364158,76439.0,76438.0,0.015082]
[1744154349468,0.01864158,76439.0,76438.0,0.015082]
[1744154349938,0.01864158,76439.0,76438.0,0.0186984]
[1744154349939,0.00412555,76439.0,76438.0,0.0186984]
[1744154350289,0.00412555,76439.0,76438.0,0.016082]
[1744154352653,5.5e-07,76439.0,76438.0,0.32351683]
[1744154352855,5.5e-07,76439.0,76438.0,0.32090064]
[1744154353099,0.013075,76479.0,76472.0,0.013076]
[1744154353214,0.00012611,76475.0,76472.0,0.013076]
[1744154353418,0.0149097,76475.0,76472.0,0.013076]
[1744154353660,0.0149097,76475.0,76469.0,0.222311]
[1744154353858,0.0149097,76475.0,76474.0,0.013076]
[1744154354058,0.00012611,76475.0,76474.0,0.013076]
[1744154354660,0.00412611,76475.0,76474.0,0.013076]
[1744154355642,0.00412611,76475.0,76471.0,0.209228]
[1744154356003,0.00412611,76475.0,76474.0,0.013076]
[1744154356297,0.00012611,76475.0,76474.0,0.05629814]
[1744154356794,0.00212611,76475.0,76474.0,0.05629814]
[1744154357189,0.00012611,76475.0,76474.0,0.05629814]
[1744154357596,0.00112611,76475.0,76474.0,0.05629814]
[1744154358443,0.00112611,76475.0,76474.0,0.18517179]
[1744154358776,0.00112611,76475.0,76474.0,0.23217179]
[1744154358978,1.1e-07,76475.0,76474.0,0.24671264]
[1744154359176,1.1e-07,76475.0,76474.0,0.29311222]
[1744154359381,0.01307,76509.0,76474.0,0.3006365]
[1744154359640,0.01349046,76509.0,76503.0,0.013071]
[1744154359783,0.34042046,76509.0,76505.0,0.222206]
[1744154359988,0.35349046,76509.0,76503.0,0.222212]
[1744154360187,0.00042046,76509.0,76502.0,0.209143]
[1744154360485,0.01508811,76509.0,76503.0,0.05529314]
[1744154360685,0.00542046,76509.0,76505.0,0.013071]
[1744154361135,0.00042046,76509.0,76505.0,0.013071]
[1744154361342,0.20954646,76509.0,76503.0,0.013071]
[1744154361499,0.21354646,76509.0,76503.0,0.013071]
[1744154361712,0.01749046,76509.0,76504.0,0.22221]
[1744154361922,0.22961646,76509.0,76504.0,0.013071]
[1744154362339,0.22961646,76509.0,76503.0,0.013071]
[1744154362542,0.23161646,76509.0,76503.0,0.013071]
[1744154362776,0.013071,76501.0,76492.0,0.20917]
[1744154363073,0.013073,76491.0,76478.0,0.20921]
[1744154363272,0.013073,76490.0,76483.0,0.013074]
[1744154363487,0.013073,76488.0,76482.0,0.209199]
[1744154363614,0.013073,76488.0,76482.0,0.222273]
[1744154364166,0.013073,76488.0,76482.0,0.013074]
[1744154364672,0.001,76488.0,76484.0,0.013074]
[1744154364828,0.002,76488.0,76485.0,0.222262]
[1744154365252,0.002,76488.0,76487.0,0.209185]
[1744154365507,0.001,76488.0,76486.0,0.013074]
[1744154365707,0.209177,76490.0,76487.0,0.0486754]
[1744154365907,0.209174,76492.0,76487.0,0.0486754]
[1744154366226,0.001,76488.0,76487.0,0.2578604]
[1744154366614,0.209174,76492.0,76487.0,0.2578604]
[1744154366959,0.209174,76492.0,76487.0,0.0506754]
[1744154367156,0.209177,76491.0,76488.0,0.01708554]
[1744154367360,0.22225,76491.0,76488.0,0.01708554]
[1744154367888,0.22225,76491.0,76487.0,0.002]
[1744154368074,0.22225,76491.0,76487.0,0.008]
[1744154368362,0.209177,76491.0,76487.0,0.211185]
[1744154368562,0.209177,76491.0,76488.0,0.005]
[1744154368765,0.22225,76491.0,76488.0,0.005]
[1744154368970,0.209177,76491.0,76487.0,0.002]
[1744154369199,0.209177,76491.0,76489.0,0.0451534]
[1744154369693,0.22224,76494.0,76488.0,0.002]
[1744154369915,0.34,76499.0,76498.0,0.013072]
[1744154370102,0.34,76499.0,76495.0,0.222235]
[1744154370315,0.34,76499.0,76496.0,0.013072]
[1744154370479,0.34,76499.0,76496.0,0.222231]
[1744154370816,0.209131,76507.0,76496.0,0.222231]
[1744154370817,0.51536,76505.0,76504.0,0.22221]
[1744154371018,0.01489077,76509.0,76508.0,0.222198]
[1744154372199,0.01489077,76509.0,76508.0,0.24639241]
[1744154372420,0.07200256,76529.0,76516.0,0.013069]
[1744154372576,0.07200256,76529.0,76519.0,0.222166]
[1744154372577,0.222148,76526.0,76519.0,0.222166]
[1744154372779,0.34,76525.0,76520.0,0.03307444]
[1744154373016,0.07212862,76529.0,76522.0,0.013068]
[1744154373017,0.20919806,76529.0,76522.0,0.013068]
[1744154373220,0.34,76528.0,76522.0,0.013068]
[1744154373363,0.20919806,76529.0,76522.0,0.013068]
[1744154373364,0.20919806,76529.0,76523.0,0.02419441]
[1744154373566,0.22226406,76529.0,76523.0,0.03726141]
[1744154373773,0.003,76526.0,76525.0,0.013067]
[1744154374214,0.01481618,76529.0,76525.0,0.013067]
[1744154374215,0.01481618,76529.0,76528.0,0.013067]
[1744154374592,0.01981618,76529.0,76528.0,0.013067]
[1744154374811,0.01981618,76529.0,76528.0,0.03726141]
[1744154374999,0.00512606,76529.0,76528.0,0.05988114]
[1744154375217,0.00512606,76529.0,76528.0,0.07199489]
[1744154375392,0.00512606,76529.0,76528.0,0.19825353]
[1744154375796,0.00012606,76529.0,76528.0,0.19825353]
[1744154375998,0.00012606,76529.0,76528.0,0.0693816]
[1744154376220,0.00212606,76529.0,76528.0,0.0693816]
[1744154376597,0.00212606,76529.0,76528.0,0.19564024]
[1744154376798,0.00212606,76529.0,76528.0,0.19825346]
[1744154377018,0.00012606,76529.0,76528.0,0.19825346]
[1744154377222,0.00012606,76529.0,76528.0,0.20064024]
[1744154377534,0.00012606,76529.0,76528.0,0.20364024]
[1744154377738,0.00012606,76529.0,76528.0,0.0773816]
[1744154378131,0.00012606,76529.0,76528.0,0.28906787]
[1744154378330,0.00012606,76529.0,76528.0,0.41271324]
[1744154379217,0.00012606,76529.0,76528.0,0.26644816]
[1744154379612,0.00012606,76529.0,76528.0,0.04430816]
[1744154379874,0.00012606,76529.0,76528.0,0.05737516]
[1744154380764,0.00012606,76529.0,76528.0,0.04430816]
[1744154380765,0.22226306,76529.0,76528.0,0.04430816]
[1744154380970,0.22226306,76529.0,76528.0,0.008]
[1744154381557,0.00012606,76529.0,76528.0,0.008]
[1744154381957,0.00012606,76529.0,76528.0,0.22714]
[1744154382269,0.00012606,76529.0,76528.0,0.2524674]
[1744154383005,0.00012606,76529.0,76528.0,0.2474674]
[1744154383407,0.00012606,76529.0,76528.0,0.2484674]
[1744154386721,0.00012606,76529.0,76528.0,0.37733927]
[1744154386923,0.00012606,76529.0,76528.0,0.37472604]
[1744154387929,6e-08,76529.0,76528.0,0.44369056]
[1744154388072,6e-08,76529.0,76528.0,0.44969056]
[1744154388272,0.00100006,76529.0,76528.0,0.45469056]
[1744154388717,0.34,76557.0,76552.0,0.209007]
[1744154388915,0.013062,76556.0,76553.0,0.04043354]
[1744154389128,0.013063,76547.0,76541.0,0.013064]
[1744154389424,0.34,76551.0,76542.0,0.222098]
[1744154389425,0.013063,76548.0,76542.0,0.222098]
[1744154389626,0.01479423,76547.0,76542.0,0.222098]
[1744154389772,0.013063,76548.0,76542.0,0.222098]
[1744154390228,0.013064,76542.0,76535.0,0.013065]
[1744154390392,0.222093,76545.0,76539.0,0.209043]
[1744154390590,0.222093,76545.0,76531.0,0.013066]
[1744154390591,0.061261,76559.0,76553.0,0.013062]
[1744154390932,0.34,76555.0,76550.0,0.209013]
[1744154391280,0.34,76555.0,76550.0,0.2534285]
[1744154391479,0.34,76555.0,76550.0,0.0444155]
[1744154391480,0.353062,76555.0,76550.0,0.0444155]
[1744154391728,0.562064,76555.0,76550.0,0.0444155]
[1744154392048,0.562064,76555.0,76549.0,0.013063]
[1744154392378,0.013062,76554.0,76549.0,0.013063]
[1744154392586,0.013063,76547.0,76541.0,0.004]
[1744154392792,0.401264,76542.0,76541.0,0.004]
[1744154392994,0.013069,76513.0,76507.0,0.01307]
[1744154393191,0.013068,76518.0,76494.0,0.24287985]
[1744154393192,0.013068,76520.0,76514.0,0.013069]
[1744154393492,0.222171,76518.0,76512.0,0.013069]
[1744154393730,0.222168,76519.0,76513.0,0.2470145]
[1744154393892,0.23676947,76519.0,76513.0,0.2470145]
[1744154394101,0.01460147,76519.0,76516.0,0.209104]
[1744154394301,0.562136,76530.0,76523.0,0.209086]
[1744154394645,0.562136,76530.0,76522.0,0.013068]
[1744154394646,0.562141,76528.0,76524.0,0.04092744]
[1744154394993,0.34,76528.0,76524.0,0.05399444]
[1744154395227,0.34,76528.0,76525.0,0.222146]
[1744154395526,0.34,76528.0,76526.0,0.013067]
[1744154395966,0.353066,76530.0,76524.0,0.013067]
[1744154396171,0.353066,76530.0,76522.0,0.222157]
[1744154396371,0.004,76528.0,76525.0,0.209079]
[1744154396577,0.344,76528.0,76523.0,0.013067]
[1744154396778,0.05,76524.0,76523.0,0.013067]
[1744154397138,0.06450023,76524.0,76523.0,0.013067]
[1744154397578,0.05,76524.0,76523.0,0.013067]
[1744154399515,0.052,76524.0,76523.0,0.013067]
[1744154401229,0.05,76524.0,76523.0,0.013067]
[1744154401432,0.05,76524.0,76522.0,0.13460936]
[1744154401657,0.013068,76522.0,76511.0,0.01307]
[1744154401979,0.222171,76517.0,76509.0,0.222195]
[1744154402356,0.05,76524.0,76513.0,0.013069]
[1744154402573,0.12625864,76523.0,76517.0,0.03529901]
[1744154402732,0.05,76524.0,76523.0,0.222154]
[1744154403135,0.05,76524.0,76523.0,0.35102612]
[1744154403334,0.05,76524.0,76523.0,0.3728434]
[1744154404369,0.05,76524.0,76523.0,0.3850597]
[1744154405088,0.05,76524.0,76523.0,0.03664706]
[1744154405242,0.063067,76524.0,76523.0,0.03664706]
[1744154405424,0.063067,76524.0,76523.0,0.0122163]
[1744154405630,0.222154,76523.0,76517.0,0.222169]
[1744154405936,0.013068,76520.0,76516.0,0.00012606]
[1744154406130,0.222166,76519.0,76516.0,0.00012606]
[1744154406498,0.222171,76517.0,76516.0,0.00012606]
[1744154407988,0.209098,76519.0,76516.0,0.00012606]
[1744154408187,0.222166,76519.0,76516.0,0.00012606]
[1744154408427,0.013068,76517.0,76516.0,0.00012606]
[1744154408573,0.013068,76517.0,76516.0,0.00312606]
[1744154408942,0.013068,76517.0,76516.0,0.00012606]
[1744154409087,0.013068,76517.0,76516.0,0.00412606]
[1744154409291,0.353068,76517.0,76516.0,0.00712606]
[1744154409495,0.47932664,76517.0,76516.0,0.00712606]
[1744154409696,0.47932664,76517.0,76516.0,0.01112606]
[1744154410038,0.6440161,76517.0,76516.0,0.01112606]
[1744154410228,0.65855695,76517.0,76516.0,0.00619247]
[1744154410396,0.65855695,76517.0,76516.0,0.00219247]
[1744154410599,0.20915,76500.0,76495.0,0.222233]
[1744154412130,0.209158,76497.0,76493.0,0.013073]
[1744154412328,0.209158,76497.0,76495.0,0.006]
[1744154412539,0.222225,76499.0,76495.0,0.006]
[1744154412840,0.001,76500.0,76495.0,0.006]
[1744154412841,0.001,76500.0,76496.0,0.0450495]
[1744154413003,0.210152,76500.0,76495.0,0.228233]
[1744154413204,0.001,76500.0,76496.0,0.013072]
[1744154413518,0.001,76497.0,76496.0,0.013072]
[1744154413927,0.209142,76503.0,76497.0,0.22223]
[1744154414139,0.001,76500.0,76495.0,0.011]
[1744154414339,0.001,76500.0,76495.0,0.222235]
[1744154414510,0.222219,76501.0,76496.0,0.222231]
[1744154414710,0.001,76497.0,76496.0,0.227231]
[1744154415164,0.001,76497.0,76495.0,0.222235]
[1744154415369,0.222219,76501.0,76495.0,0.222235]
[1744154415521,0.001,76500.0,76495.0,0.227235]
[1744154415723,0.210152,76500.0,76496.0,0.006]
[1744154415922,0.210152,76500.0,76497.0,0.0246312]
[1744154416123,0.001,76500.0,76498.0,0.222227]
[1744154416479,0.001,76500.0,76495.0,0.018072]
[1744154416480,0.222233,76496.0,76495.0,0.011]
[1744154416675,0.222233,76496.0,76495.0,0.005]
[1744154417380,0.013075,76479.0,76469.0,0.222309]
[1744154417581,0.013075,76479.0,76471.0,0.013076]
[1744154417815,0.013073,76488.0,76470.0,0.0444631]
[1744154417816,0.209166,76494.0,76475.0,0.013076]
[1744154418004,0.17605864,76496.0,76495.0,0.013072]
[1744154418005,0.004,76496.0,76495.0,0.013072]
[1744154418209,0.004,76496.0,76492.0,0.20917]
[1744154418413,0.004,76496.0,76492.0,0.234009]
[1744154418712,0.004,76496.0,76493.0,0.22224]
[1744154418916,0.01798309,76496.0,76492.0,0.23442946]
[1744154419149,0.209157,76498.0,76492.0,0.23442946]
[1744154419346,0.001,76496.0,76492.0,0.24750246]
[1744154419725,0.210161,76496.0,76492.0,0.24750246]
[1744154419931,0.210161,76496.0,76492.0,0.00042046]
[1744154420645,0.209161,76496.0,76492.0,0.00042046]
[1744154421205,0.209158,76497.0,76492.0,0.00042046]
[1744154421611,0.001,76496.0,76492.0,0.22266346]
[1744154422134,0.209158,76497.0,76492.0,0.22266346]
[1744154422333,0.013072,76496.0,76492.0,0.00042046]
[1744154422536,0.222242,76493.0,76492.0,0.00042046]
[1744154424310,0.34850064,76493.0,76492.0,0.00042046]
[1744154424509,0.73430064,76493.0,76492.0,0.00042046]
[1744154425396,0.73530064,76493.0,76492.0,0.00042046]
[1744154426220,0.86155609,76493.0,76492.0,0.00042046]
[1744154426667,0.73530064,76493.0,76492.0,0.00042046]
[1744154427138,0.73430064,76493.0,76492.0,0.00042046]
[1744154427360,0.74230064,76493.0,76492.0,0.00142046]
[1744154427654,0.69650064,76493.0,76492.0,0.00142046]
[1744154428440,0.570242,76493.0,76492.0,0.00142046]
[1744154428805,0.013,76493.0,76492.0,0.22466546]
[1744154429013,0.013,76493.0,76492.0,0.24974671]
[1744154429437,0.013,76493.0,76492.0,0.37600535]
[1744154430049,0.17504,76526.0,76512.0,0.013069]
[1744154430276,0.17504,76526.0,76525.0,0.209081]
[1744154430476,0.013066,76534.0,76525.0,0.222148]
[1744154430675,0.01876683,76534.0,76530.0,0.222132]
[1744154430876,0.013065,76535.0,76528.0,0.22214]
[1744154431056,0.353065,76535.0,76529.0,0.013066]
[1744154431252,0.222123,76534.0,76529.0,0.04067969]
[1744154431484,0.013066,76532.0,76529.0,0.04067969]
[1744154431817,0.00147316,76531.0,76529.0,0.04067969]
[1744154431952,0.34147316,76531.0,76529.0,0.04067969]
[1744154432149,0.34,76531.0,76529.0,0.04067969]
[1744154432350,0.00147316,76530.0,76528.0,0.22214]
[1744154432700,0.00147316,76530.0,76526.0,0.222146]
[1744154432929,0.00147316,76530.0,76527.0,0.013067]
[1744154433488,0.00147316,76530.0,76528.0,0.013067]
[1744154433686,0.00147316,76530.0,76529.0,0.222137]
[1744154433886,0.00147316,76530.0,76529.0,0.07882694]
[1744154434105,0.00012594,76534.0,76533.0,0.013066]
[1744154434301,0.00012594,76534.0,76533.0,0.22473889]
[1744154434660,0.00012594,76534.0,76533.0,0.222126]
[1744154436661,0.00012594,76534.0,76533.0,0.227126]
[1744154437420,0.00012594,76534.0,76533.0,0.005]
[1744154437620,0.00012594,76534.0,76533.0,0.227126]
[1744154438556,0.00012594,76534.0,76533.0,0.39998464]
[1744154440026,0.00012594,76534.0,76533.0,0.39698464]
[1744154440431,0.00012594,76534.0,76533.0,0.39998464]
[1744154440944,0.00012594,76534.0,76533.0,0.40498464]
[1744154441168,0.00012594,76534.0,76533.0,0.232126]
[1744154442545,0.00012594,76534.0,76533.0,0.01]